[Event "*** SCC Grand Prix: Titled Tuesday Blitz"]
[Site "Chess.com"]
[Date "2020.08.11"]
[Round "5"]
[White "diablanni"]
[Black "vrekhson"]
[Result "1/2-1/2"]
[WhiteElo "2328"]
[BlackElo "2160"]
[TimeControl "180+1"]
[EndTime "10:56:19 PDT"]
[Termination "Game drawn - insufficient material"]

1. e4 {[%clk 0:02:59.7]} 1... c5 {[%clk 0:02:59.7]} 2. Nf3 {[%clk 0:02:59.4]}
2... a6 {[%clk 0:02:59.7]} 3. c4 {[%clk 0:02:58.5]} 3... Nc6 {[%clk 0:02:59.4]}
4. d4 {[%clk 0:02:58.4]} 4... cxd4 {[%clk 0:03:00.3]} 5. Nxd4 {[%clk 0:02:58.6]}
5... Nf6 {[%clk 0:03:00.9]} 6. Nc3 {[%clk 0:02:58.2]} 6... e5 {[%clk 0:03:01.3]}
7. Nf5 {[%clk 0:02:52.4]} 7... d5 {[%clk 0:03:00.8]} 8. cxd5 {[%clk 0:02:50.3]}
8... Bxf5 {[%clk 0:03:00.6]} 9. exf5 {[%clk 0:02:47.3]} 9... Nd4 {[%clk
0:03:01.2]} 10. Bc4 {[%clk 0:02:35.3]} 10... b5 {[%clk 0:02:43.4]} 11. Bb3
{[%clk 0:02:34.6]} 11... Bb4 {[%clk 0:02:43.6]} 12. O-O {[%clk 0:02:29.9]} 12...
O-O {[%clk 0:02:43.5]} 13. Bg5 {[%clk 0:02:24.7]} 13... Nxb3 {[%clk 0:02:40.3]}
14. axb3 {[%clk 0:02:14.4]} 14... Bxc3 {[%clk 0:02:39.3]} 15. bxc3 {[%clk
0:02:09.1]} 15... Qxd5 {[%clk 0:02:37.9]} 16. Bxf6 {[%clk 0:02:05.2]} 16... Qxd1
{[%clk 0:02:35.1]} 17. Rfxd1 {[%clk 0:02:06.1]} 17... gxf6 {[%clk 0:02:35.4]}
18. Rd6 {[%clk 0:01:55.8]} 18... Rfc8 {[%clk 0:02:35.1]} 19. Rc1 {[%clk
0:01:56]} 19... Kg7 {[%clk 0:02:32.8]} 20. g4 {[%clk 0:01:48.2]} 20... a5 {[%clk
0:02:32]} 21. Rb6 {[%clk 0:01:25.8]} 21... Rc5 {[%clk 0:02:28.4]} 22. h4 {[%clk
0:01:17.3]} 22... a4 {[%clk 0:02:20.7]} 23. bxa4 {[%clk 0:01:09.9]} 23... bxa4
{[%clk 0:02:19.7]} 24. Kg2 {[%clk 0:01:04.3]} 24... a3 {[%clk 0:02:19]} 25. g5
{[%clk 0:01:03.6]} 25... a2 {[%clk 0:02:09.7]} 26. gxf6+ {[%clk 0:00:55.1]}
26... Kh6 {[%clk 0:02:09.5]} 27. Ra1 {[%clk 0:00:53.8]} 27... Rxc3 {[%clk
0:01:51.9]} 28. Rb2 {[%clk 0:00:52.8]} 28... Rca3 {[%clk 0:01:35.4]} 29. f3
{[%clk 0:00:50.5]} 29... Kh5 {[%clk 0:01:27]} 30. Re2 {[%clk 0:00:45.2]} 30...
Kxh4 {[%clk 0:01:16.7]} 31. Rxe5 {[%clk 0:00:41.2]} 31... Rb3 {[%clk 0:01:06.8]}
32. Re2 {[%clk 0:00:34.4]} 32... Rba3 {[%clk 0:01:07]} 33. Re7 {[%clk
0:00:21.7]} 33... Kg5 {[%clk 0:01:07.1]} 34. Kg3 {[%clk 0:00:10.4]} 34... Kxf6
{[%clk 0:01:04.5]} 35. Re2 {[%clk 0:00:10.7]} 35... Kxf5 {[%clk 0:01:03.2]} 36.
Rh2 {[%clk 0:00:10]} 36... Rg8+ {[%clk 0:00:46.8]} 37. Kf2 {[%clk 0:00:10]}
37... Rb8 {[%clk 0:00:41.9]} 38. Kg3 {[%clk 0:00:10.1]} 38... Rbb3 {[%clk
0:00:32.4]} 39. Raxa2 {[%clk 0:00:09]} 39... Rxf3+ {[%clk 0:00:30.6]} 40. Kh4
{[%clk 0:00:08.9]} 40... Rf4+ {[%clk 0:00:17.7]} 41. Kh5 {[%clk 0:00:08.6]}
41... Rfa4 {[%clk 0:00:14.4]} 42. Rae2 {[%clk 0:00:06.5]} 42... Rf4 {[%clk
0:00:11.4]} 43. Kh6 {[%clk 0:00:03.9]} 43... f6 {[%clk 0:00:08.6]} 44. Kxh7
{[%clk 0:00:03.9]} 44... Ra7+ {[%clk 0:00:07.7]} 45. Kh6 {[%clk 0:00:03.8]}
45... Ra8 {[%clk 0:00:07.6]} 46. Kg7 {[%clk 0:00:03.9]} 46... Ra7+ {[%clk
0:00:07.1]} 47. Kh6 {[%clk 0:00:03.3]} 47... Ra3 {[%clk 0:00:06.8]} 48. Kg7
{[%clk 0:00:02.4]} 48... Rg3+ {[%clk 0:00:06.4]} 49. Kf7 {[%clk 0:00:02.5]}
49... Ra4 {[%clk 0:00:05.1]} 50. Rhf2+ {[%clk 0:00:02.7]} 50... Kg5 {[%clk
0:00:05]} 51. Rxf6 {[%clk 0:00:02.8]} 51... Ra7+ {[%clk 0:00:04.4]} 52. Re7
{[%clk 0:00:03.4]} 52... Rxe7+ {[%clk 0:00:04.2]} 53. Kxe7 {[%clk 0:00:04.3]}
53... Re3+ {[%clk 0:00:04.3]} 54. Re6 {[%clk 0:00:04.5]} 54... Rxe6+ {[%clk
0:00:04.5]} 55. Kxe6 {[%clk 0:00:04.7]} 1/2-1/2

[Event "*** SCC Grand Prix: Titled Tuesday Blitz"]
[Site "Chess.com"]
[Date "2020.08.11"]
[Round "5"]
[White "Volodar_Murzin"]
[Black "IriBu"]
[Result "1/2-1/2"]
[WhiteElo "2688"]
[BlackElo "2492"]
[TimeControl "180+1"]
[EndTime "10:56:24 PDT"]
[Termination "Game drawn by repetition"]

1. e4 {[%clk 0:03:00.9]} 1... c5 {[%clk 0:02:58.9]} 2. Nf3 {[%clk 0:02:56.9]}
2... d6 {[%clk 0:02:58.9]} 3. Bb5+ {[%clk 0:02:53.5]} 3... Bd7 {[%clk
0:02:57.5]} 4. Bxd7+ {[%clk 0:02:53.9]} 4... Nxd7 {[%clk 0:02:57.7]} 5. O-O
{[%clk 0:02:54.3]} 5... Ngf6 {[%clk 0:02:58]} 6. Qe2 {[%clk 0:02:51.1]} 6... Rc8
{[%clk 0:02:56.8]} 7. c3 {[%clk 0:02:50.6]} 7... e6 {[%clk 0:02:55.4]} 8. Rd1
{[%clk 0:02:47.3]} 8... Be7 {[%clk 0:02:53.8]} 9. d4 {[%clk 0:02:45.3]} 9...
cxd4 {[%clk 0:02:53.6]} 10. cxd4 {[%clk 0:02:46.2]} 10... d5 {[%clk 0:02:54]}
11. e5 {[%clk 0:02:44.9]} 11... Ne4 {[%clk 0:02:19.9]} 12. Be3 {[%clk 0:02:37]}
12... O-O {[%clk 0:02:17.8]} 13. Ne1 {[%clk 0:02:35.4]} 13... f5 {[%clk
0:02:01.7]} 14. exf6 {[%clk 0:02:29.8]} 14... Bxf6 {[%clk 0:02:00.6]} 15. Nd3
{[%clk 0:02:27.4]} 15... Qb6 {[%clk 0:01:39]} 16. Ne5 {[%clk 0:02:18.3]} 16...
Bxe5 {[%clk 0:01:33.1]} 17. dxe5 {[%clk 0:02:15.7]} 17... Qc7 {[%clk 0:01:33.1]}
18. f4 {[%clk 0:02:15]} 18... Qc2 {[%clk 0:01:24.7]} 19. Qg4 {[%clk 0:01:59.7]}
19... Rfe8 {[%clk 0:01:05.1]} 20. Nd2 {[%clk 0:01:54.7]} 20... Nxd2 {[%clk
0:00:57.6]} 21. Rxd2 {[%clk 0:01:52.8]} 21... Qe4 {[%clk 0:00:52.9]} 22. Qe2
{[%clk 0:01:42.7]} 22... b6 {[%clk 0:00:44.6]} 23. g3 {[%clk 0:01:37]} 23... Rc7
{[%clk 0:00:43.9]} 24. Re1 {[%clk 0:01:22.1]} 24... Rec8 {[%clk 0:00:34.9]} 25.
Qg4 {[%clk 0:01:14.6]} 25... Qg6 {[%clk 0:00:24.4]} 26. Qf3 {[%clk 0:00:54.1]}
26... Rc2 {[%clk 0:00:24.2]} 27. Red1 {[%clk 0:00:52.1]} 27... Rxd2 {[%clk
0:00:21.3]} 28. Rxd2 {[%clk 0:00:53]} 28... Rc1+ {[%clk 0:00:19.6]} 29. Kg2
{[%clk 0:00:48.2]} 29... Rc2 {[%clk 0:00:09.7]} 30. g4 {[%clk 0:00:30.4]} 30...
Rxd2+ {[%clk 0:00:09.1]} 31. Bxd2 {[%clk 0:00:27]} 31... Qc2 {[%clk 0:00:09.7]}
32. Qc3 {[%clk 0:00:24.5]} 32... Qxc3 {[%clk 0:00:09.5]} 33. Bxc3 {[%clk
0:00:21.8]} 33... g6 {[%clk 0:00:10]} 34. Bd4 {[%clk 0:00:19.7]} 34... Kf7
{[%clk 0:00:10.2]} 35. b4 {[%clk 0:00:19.1]} 35... a6 {[%clk 0:00:09.2]} 36. Kg3
{[%clk 0:00:15.6]} 36... b5 {[%clk 0:00:08.2]} 37. Kh4 {[%clk 0:00:15.1]} 37...
h6 {[%clk 0:00:08.1]} 38. Kg3 {[%clk 0:00:15.2]} 38... Nb8 {[%clk 0:00:06.6]}
39. Kf3 {[%clk 0:00:14.7]} 39... Nc6 {[%clk 0:00:06.9]} 40. Bc5 {[%clk
0:00:14.8]} 40... Nd8 {[%clk 0:00:03.7]} 41. h4 {[%clk 0:00:14.5]} 41... h5
{[%clk 0:00:02.9]} 42. g5 {[%clk 0:00:12.4]} 42... Nc6 {[%clk 0:00:02.6]} 43.
Ke3 {[%clk 0:00:11.9]} 43... Nb8 {[%clk 0:00:02.9]} 44. Kd3 {[%clk 0:00:11.9]}
44... Nd7 {[%clk 0:00:03.4]} 45. Bf2 {[%clk 0:00:11.9]} 45... Ke8 {[%clk
0:00:03.4]} 46. a3 {[%clk 0:00:11.8]} 46... Kf7 {[%clk 0:00:03.8]} 47. Kd4
{[%clk 0:00:12]} 47... Ke8 {[%clk 0:00:03.3]} 48. Be3 {[%clk 0:00:11]} 48... Kf7
{[%clk 0:00:03.8]} 49. Bd2 {[%clk 0:00:10.8]} 49... Ke8 {[%clk 0:00:04.2]} 50.
Be3 {[%clk 0:00:09.4]} 50... Kf7 {[%clk 0:00:04.6]} 51. Kc3 {[%clk 0:00:09]}
51... Ke8 {[%clk 0:00:04.8]} 52. Bd4 {[%clk 0:00:07.2]} 52... Kf7 {[%clk
0:00:05.3]} 53. Kd3 {[%clk 0:00:07.6]} 53... Ke7 {[%clk 0:00:05.8]} 54. Bf2
{[%clk 0:00:08.1]} 54... Kf7 {[%clk 0:00:06.3]} 55. Bd4 {[%clk 0:00:08.2]} 55...
Ke7 {[%clk 0:00:06.8]} 56. Ke3 {[%clk 0:00:08.6]} 56... Kf7 {[%clk 0:00:07.2]}
57. Kd3 {[%clk 0:00:09]} 1/2-1/2

[Event "*** SCC Grand Prix: Titled Tuesday Blitz"]
[Site "Chess.com"]
[Date "2020.08.11"]
[Round "5"]
[White "Azoulas1"]
[Black "LaPorfia"]
[Result "1-0"]
[WhiteElo "2016"]
[BlackElo "2241"]
[TimeControl "180+1"]
[EndTime "10:56:24 PDT"]
[Termination "Azoulas1 won by checkmate"]

1. e4 {[%clk 0:03:00.9]} 1... d5 {[%clk 0:02:59.5]} 2. exd5 {[%clk 0:02:59.6]}
2... Nf6 {[%clk 0:02:59.7]} 3. d4 {[%clk 0:02:57.6]} 3... Bg4 {[%clk 0:02:58.4]}
4. f3 {[%clk 0:02:56]} 4... Bf5 {[%clk 0:02:58]} 5. Bb5+ {[%clk 0:02:53.5]} 5...
Nbd7 {[%clk 0:02:57.6]} 6. Bc4 {[%clk 0:02:51.5]} 6... a6 {[%clk 0:02:55.6]} 7.
Ne2 {[%clk 0:02:48.2]} 7... Nb6 {[%clk 0:02:54.7]} 8. Bd3 {[%clk 0:02:47.6]}
8... Bxd3 {[%clk 0:02:54.1]} 9. Qxd3 {[%clk 0:02:45.8]} 9... Nbxd5 {[%clk
0:02:52.8]} 10. a3 {[%clk 0:02:44.2]} 10... e6 {[%clk 0:02:52.4]} 11. c4 {[%clk
0:02:42.3]} 11... Nb6 {[%clk 0:02:52.2]} 12. Nbc3 {[%clk 0:02:40.9]} 12... c5
{[%clk 0:02:51.2]} 13. Bg5 {[%clk 0:02:32.4]} 13... cxd4 {[%clk 0:02:43.1]} 14.
Nxd4 {[%clk 0:02:24.7]} 14... Bc5 {[%clk 0:02:41.4]} 15. O-O-O {[%clk
0:02:22.1]} 15... Bxd4 {[%clk 0:02:39.4]} 16. Qxd4 {[%clk 0:02:18.4]} 16... Qxd4
{[%clk 0:02:39.2]} 17. Rxd4 {[%clk 0:02:13.5]} 17... Ke7 {[%clk 0:02:38.7]} 18.
b3 {[%clk 0:02:12.2]} 18... Rad8 {[%clk 0:02:35.4]} 19. Rhd1 {[%clk 0:02:09.9]}
19... Rxd4 {[%clk 0:02:33.5]} 20. Rxd4 {[%clk 0:02:08.3]} 20... h6 {[%clk
0:02:33.2]} 21. Bxf6+ {[%clk 0:02:06.1]} 21... gxf6 {[%clk 0:02:31.3]} 22. Ne4
{[%clk 0:02:03.5]} 22... Nd7 {[%clk 0:02:30.2]} 23. Kb2 {[%clk 0:01:58.1]} 23...
f5 {[%clk 0:02:13]} 24. Nd6 {[%clk 0:01:54.2]} 24... Rb8 {[%clk 0:02:11]} 25. b4
{[%clk 0:01:50.5]} 25... Ne5 {[%clk 0:02:03.2]} 26. c5 {[%clk 0:01:45.9]} 26...
Kf6 {[%clk 0:01:33.8]} 27. Kc3 {[%clk 0:01:30.6]} 27... b6 {[%clk 0:01:25.8]}
28. f4 {[%clk 0:01:13.7]} 28... Nc6 {[%clk 0:01:20.2]} 29. Rd3 {[%clk 0:01:07]}
29... bxc5 {[%clk 0:01:19.6]} 30. bxc5 {[%clk 0:01:03.9]} 30... Ne7 {[%clk
0:01:19.4]} 31. Rh3 {[%clk 0:01:00.6]} 31... Nd5+ {[%clk 0:01:13.8]} 32. Kc4
{[%clk 0:00:57.3]} 32... Nxf4 {[%clk 0:01:13.5]} 33. Rxh6+ {[%clk 0:00:54.9]}
33... Kg7 {[%clk 0:01:09.9]} 34. Rh4 {[%clk 0:00:52.8]} 34... Nd5 {[%clk
0:01:04.4]} 35. Nxf5+ {[%clk 0:00:50.4]} 35... Kf6 {[%clk 0:01:01.8]} 36. Nd4
{[%clk 0:00:44.3]} 36... Rb1 {[%clk 0:00:56.1]} 37. Rh6+ {[%clk 0:00:41.6]}
37... Ke7 {[%clk 0:00:51.8]} 38. Nc6+ {[%clk 0:00:39.6]} 38... Kf8 {[%clk
0:00:38.2]} 39. Rh8+ {[%clk 0:00:36.3]} 39... Kg7 {[%clk 0:00:37.6]} 40. Rb8
{[%clk 0:00:30.2]} 40... Rc1+ {[%clk 0:00:34.5]} 41. Kd4 {[%clk 0:00:29.3]}
41... Rd1+ {[%clk 0:00:33.7]} 42. Ke5 {[%clk 0:00:28.5]} 42... Ne3 {[%clk
0:00:29.2]} 43. Rb4 {[%clk 0:00:21.7]} 43... Rd5+ {[%clk 0:00:24]} 44. Ke4
{[%clk 0:00:20.1]} 44... Nxg2 {[%clk 0:00:21.7]} 45. Rb2 {[%clk 0:00:18.4]}
45... f5+ {[%clk 0:00:20.3]} 46. Kf3 {[%clk 0:00:16.8]} 46... Nh4+ {[%clk
0:00:20.9]} 47. Kg3 {[%clk 0:00:16.4]} 47... Ng6 {[%clk 0:00:19.7]} 48. Rc2
{[%clk 0:00:14]} 48... f4+ {[%clk 0:00:19.3]} 49. Kf3 {[%clk 0:00:11.8]} 49...
e5 {[%clk 0:00:19.4]} 50. Nb4 {[%clk 0:00:10.6]} 50... Ne7 {[%clk 0:00:17.7]}
51. Nxd5 {[%clk 0:00:08.8]} 51... Nxd5 {[%clk 0:00:18.6]} 52. c6 {[%clk
0:00:08.5]} 52... Kf6 {[%clk 0:00:19]} 53. c7 {[%clk 0:00:07.4]} 53... Kf5
{[%clk 0:00:19.9]} 54. c8=Q+ {[%clk 0:00:05.7]} 54... Kf6 {[%clk 0:00:18.5]} 55.
Qc6+ {[%clk 0:00:03.6]} 55... Kg5 {[%clk 0:00:18]} 56. Qxd5 {[%clk 0:00:03.7]}
56... Kh4 {[%clk 0:00:18.8]} 57. Qxe5 {[%clk 0:00:03.2]} 57... Kh3 {[%clk
0:00:18.9]} 58. Qxf4 {[%clk 0:00:03.7]} 58... a5 {[%clk 0:00:16.2]} 59. Qg3#
{[%clk 0:00:03.2]} 1-0

[Event "*** SCC Grand Prix: Titled Tuesday Blitz"]
[Site "Chess.com"]
[Date "2020.08.11"]
[Round "5"]
[White "Gerodot71"]
[Black "TudorAnton"]
[Result "1-0"]
[WhiteElo "2412"]
[BlackElo "2545"]
[TimeControl "180+1"]
[EndTime "10:56:31 PDT"]
[Termination "Gerodot71 won by resignation"]

1. d4 {[%clk 0:03:00.9]} 1... Nf6 {[%clk 0:02:59]} 2. c4 {[%clk 0:03:00.6]} 2...
e6 {[%clk 0:02:56.2]} 3. Nf3 {[%clk 0:02:59.7]} 3... Bb4+ {[%clk 0:02:55.1]} 4.
Bd2 {[%clk 0:02:58.9]} 4... c5 {[%clk 0:02:53.9]} 5. Bxb4 {[%clk 0:02:58.2]}
5... cxb4 {[%clk 0:02:54.8]} 6. a3 {[%clk 0:02:58.3]} 6... bxa3 {[%clk
0:02:53.1]} 7. Nxa3 {[%clk 0:02:59.2]} 7... O-O {[%clk 0:02:51.8]} 8. e3 {[%clk
0:02:58.9]} 8... b6 {[%clk 0:02:50.9]} 9. Be2 {[%clk 0:02:54.4]} 9... Bb7 {[%clk
0:02:51]} 10. O-O {[%clk 0:02:53.4]} 10... d6 {[%clk 0:02:51.2]} 11. Qb1 {[%clk
0:02:49.8]} 11... Nbd7 {[%clk 0:02:48.8]} 12. b4 {[%clk 0:02:49]} 12... a6
{[%clk 0:02:46.7]} 13. Qb2 {[%clk 0:02:47.2]} 13... Qb8 {[%clk 0:02:42.5]} 14.
Rfc1 {[%clk 0:02:42.3]} 14... Rc8 {[%clk 0:02:41.3]} 15. Nb1 {[%clk 0:02:33.2]}
15... Ne4 {[%clk 0:02:33.4]} 16. Nbd2 {[%clk 0:02:29.7]} 16... Nxd2 {[%clk
0:02:29.3]} 17. Nxd2 {[%clk 0:02:30.6]} 17... Nf6 {[%clk 0:02:25.5]} 18. Bf1
{[%clk 0:02:27.7]} 18... e5 {[%clk 0:02:14.5]} 19. Ra3 {[%clk 0:02:22.4]} 19...
Bc6 {[%clk 0:02:04.7]} 20. Rb3 {[%clk 0:02:13.9]} 20... Qb7 {[%clk 0:02:01.4]}
21. dxe5 {[%clk 0:01:51.3]} 21... dxe5 {[%clk 0:02:02.3]} 22. Qxe5 {[%clk
0:01:52]} 22... Rd8 {[%clk 0:01:58.1]} 23. Rb2 {[%clk 0:01:44.6]} 23... h6
{[%clk 0:01:48.7]} 24. b5 {[%clk 0:01:31.1]} 24... axb5 {[%clk 0:01:46.5]} 25.
cxb5 {[%clk 0:01:32]} 25... Bd5 {[%clk 0:01:44.5]} 26. Rbc2 {[%clk 0:01:26.1]}
26... Be6 {[%clk 0:01:36.8]} 27. Nf3 {[%clk 0:01:17.3]} 27... Rd5 {[%clk
0:01:34.1]} 28. Qb2 {[%clk 0:01:07.1]} 28... Rad8 {[%clk 0:01:31.9]} 29. Nd4
{[%clk 0:01:06.9]} 29... Qb8 {[%clk 0:01:27.5]} 30. Nxe6 {[%clk 0:01:05.9]}
30... fxe6 {[%clk 0:01:28.4]} 31. Bc4 {[%clk 0:01:04.7]} 31... R5d6 {[%clk
0:01:27.4]} 32. g3 {[%clk 0:00:59.4]} 32... Kh8 {[%clk 0:01:27.1]} 33. Bf1
{[%clk 0:00:57.8]} 33... R6d7 {[%clk 0:01:21]} 34. h3 {[%clk 0:00:56.4]} 34...
Ne4 {[%clk 0:01:16.7]} 35. Bg2 {[%clk 0:00:55.6]} 35... Nc5 {[%clk 0:01:12]} 36.
Qa2 {[%clk 0:00:33.9]} 36... Qe5 {[%clk 0:00:56]} 37. Bc6 {[%clk 0:00:33.1]}
37... Rd1+ {[%clk 0:00:54.4]} 38. Kg2 {[%clk 0:00:33.4]} 38... Rxc1 {[%clk
0:00:50.8]} 39. Rxc1 {[%clk 0:00:34.3]} 39... Rd6 {[%clk 0:00:49.5]} 40. Qc4
{[%clk 0:00:32.9]} 40... Nd3 {[%clk 0:00:45.3]} 41. Rf1 {[%clk 0:00:29.7]} 41...
Nc5 {[%clk 0:00:44.4]} 42. Qf4 {[%clk 0:00:27.3]} 42... Qxf4 {[%clk 0:00:42.6]}
43. gxf4 {[%clk 0:00:28.2]} 43... Kg8 {[%clk 0:00:42.5]} 44. Ra1 {[%clk
0:00:27.9]} 44... Kf7 {[%clk 0:00:41.5]} 45. Ra7+ {[%clk 0:00:27.9]} 45... Kf6
{[%clk 0:00:41.7]} 46. Kf3 {[%clk 0:00:27]} 46... Rd2 {[%clk 0:00:41.5]} 47. e4
{[%clk 0:00:26.4]} 47... Rb2 {[%clk 0:00:39.2]} 48. e5+ {[%clk 0:00:26.4]} 48...
Kg6 {[%clk 0:00:38.4]} 49. Kg3 {[%clk 0:00:25.3]} 49... Rb3+ {[%clk 0:00:38.1]}
50. Kg2 {[%clk 0:00:25.6]} 50... h5 {[%clk 0:00:35]} 51. h4 {[%clk 0:00:24.8]}
51... Kh6 {[%clk 0:00:34.2]} 52. Ra8 {[%clk 0:00:24.1]} 52... Rb2 {[%clk
0:00:34.4]} 53. Rb8 {[%clk 0:00:18.8]} 53... Nd3 {[%clk 0:00:32.9]} 54. Rh8+
{[%clk 0:00:18.7]} 54... Kg6 {[%clk 0:00:32.2]} 55. Be4+ {[%clk 0:00:19.6]}
55... Kf7 {[%clk 0:00:32.6]} 56. Bxd3 {[%clk 0:00:20.5]} 56... Rb3 {[%clk
0:00:32.5]} 57. Bf1 {[%clk 0:00:20.7]} 57... Rb4 {[%clk 0:00:32.4]} 58. Kg3
{[%clk 0:00:19]} 58... Rb3+ {[%clk 0:00:32.3]} 59. Kg2 {[%clk 0:00:19.2]} 59...
Rb4 {[%clk 0:00:32.5]} 60. Rb8 {[%clk 0:00:19.5]} 60... Rxf4 {[%clk 0:00:31.6]}
61. Rxb6 {[%clk 0:00:18.6]} 61... Rg4+ {[%clk 0:00:32]} 62. Kf3 {[%clk
0:00:18.5]} 62... Rxh4 {[%clk 0:00:32.9]} 63. Rb7+ {[%clk 0:00:18.4]} 63... Kf8
{[%clk 0:00:31.4]} 64. b6 {[%clk 0:00:18]} 64... Rb4 {[%clk 0:00:32.3]} 65. Rb8+
{[%clk 0:00:17.6]} 65... Kf7 {[%clk 0:00:32.4]} 66. b7 {[%clk 0:00:18.2]} 66...
Kg6 {[%clk 0:00:32.9]} 67. Be2 {[%clk 0:00:18.1]} 67... Kg5 {[%clk 0:00:33.3]}
68. Ba6 {[%clk 0:00:16]} 68... g6 {[%clk 0:00:33.4]} 69. Ra8 {[%clk 0:00:15.7]}
69... Rb3+ {[%clk 0:00:34.3]} 70. Kg2 {[%clk 0:00:15.5]} 70... Rb4 {[%clk
0:00:35.2]} 71. b8=Q {[%clk 0:00:16.4]} 71... Rg4+ {[%clk 0:00:35.5]} 72. Kf1
{[%clk 0:00:15.7]} 1-0

[Event "*** SCC Grand Prix: Titled Tuesday Blitz"]
[Site "Chess.com"]
[Date "2020.08.11"]
[Round "5"]
[White "XiaoKangZhong"]
[Black "Rodalquilar"]
[Result "1/2-1/2"]
[WhiteElo "2427"]
[BlackElo "2606"]
[TimeControl "180+1"]
[EndTime "10:56:32 PDT"]
[Termination "Game drawn by repetition"]

1. e4 {[%clk 0:03:00.9]} 1... d5 {[%clk 0:02:41.3]} 2. exd5 {[%clk 0:02:56.2]}
2... Qxd5 {[%clk 0:02:41]} 3. Nc3 {[%clk 0:02:56.9]} 3... Qa5 {[%clk 0:02:41.1]}
4. d4 {[%clk 0:02:54.8]} 4... Nf6 {[%clk 0:02:41.3]} 5. Be3 {[%clk 0:02:49.7]}
5... Bf5 {[%clk 0:02:39.2]} 6. Bc4 {[%clk 0:02:47.8]} 6... e6 {[%clk 0:02:39.1]}
7. Ne2 {[%clk 0:02:47.3]} 7... c6 {[%clk 0:02:16.1]} 8. O-O {[%clk 0:02:40.6]}
8... Bd6 {[%clk 0:02:16.2]} 9. h3 {[%clk 0:02:37.8]} 9... O-O {[%clk 0:02:15.1]}
10. Bd3 {[%clk 0:02:37.4]} 10... Nbd7 {[%clk 0:02:13.8]} 11. a3 {[%clk
0:02:33.1]} 11... Bxd3 {[%clk 0:02:11.7]} 12. Qxd3 {[%clk 0:02:32.9]} 12... Rad8
{[%clk 0:02:12.6]} 13. Ne4 {[%clk 0:02:30.7]} 13... Be7 {[%clk 0:02:09.1]} 14.
b4 {[%clk 0:02:20.8]} 14... Qh5 {[%clk 0:01:36.7]} 15. Nf4 {[%clk 0:02:04.8]}
15... Qf5 {[%clk 0:01:22.3]} 16. Ng3 {[%clk 0:01:56.2]} 16... Qxd3 {[%clk
0:01:21.5]} 17. Nxd3 {[%clk 0:01:57.1]} 17... Nb6 {[%clk 0:01:14.6]} 18. Rfc1
{[%clk 0:01:28.7]} 18... Nc4 {[%clk 0:01:13.4]} 19. Ne5 {[%clk 0:01:29]} 19...
Nxe5 {[%clk 0:00:48.8]} 20. dxe5 {[%clk 0:01:28.6]} 20... Nd7 {[%clk 0:00:49.7]}
21. f4 {[%clk 0:01:23.7]} 21... Nb6 {[%clk 0:00:49.9]} 22. Bxb6 {[%clk 0:01:08]}
22... axb6 {[%clk 0:00:50.8]} 23. Rd1 {[%clk 0:01:08.8]} 23... Rfe8 {[%clk
0:00:40.2]} 24. Kf2 {[%clk 0:01:06.4]} 24... Kf8 {[%clk 0:00:40.7]} 25. Ne4
{[%clk 0:01:06]} 25... Rxd1 {[%clk 0:00:26.8]} 26. Rxd1 {[%clk 0:01:05.5]} 26...
Rb8 {[%clk 0:00:26.9]} 27. c4 {[%clk 0:00:57.4]} 27... Ke8 {[%clk 0:00:27.1]}
28. Rd3 {[%clk 0:00:57.1]} 28... f5 {[%clk 0:00:22.7]} 29. exf6 {[%clk
0:00:51.5]} 29... gxf6 {[%clk 0:00:23.6]} 30. g4 {[%clk 0:00:48.1]} 30... f5
{[%clk 0:00:17]} 31. Ng3 {[%clk 0:00:37]} 31... Bh4 {[%clk 0:00:15.7]} 32. Kf3
{[%clk 0:00:37.1]} 32... Bxg3 {[%clk 0:00:15.2]} 33. Kxg3 {[%clk 0:00:37.6]}
33... Ke7 {[%clk 0:00:16.1]} 34. Kh4 {[%clk 0:00:26.1]} 34... Rf8 {[%clk
0:00:10.3]} 35. g5 {[%clk 0:00:24]} 35... e5 {[%clk 0:00:06.6]} 36. fxe5 {[%clk
0:00:23.1]} 36... Ke6 {[%clk 0:00:07.2]} 37. Kg3 {[%clk 0:00:20.7]} 37... f4+
{[%clk 0:00:03.6]} 38. Kf3 {[%clk 0:00:20.5]} 38... Rf7 {[%clk 0:00:04.1]} 39.
h4 {[%clk 0:00:16.4]} 39... Kxe5 {[%clk 0:00:04.1]} 40. a4 {[%clk 0:00:15.6]}
40... Kf5 {[%clk 0:00:04.4]} 41. b5 {[%clk 0:00:14.8]} 41... cxb5 {[%clk
0:00:04.3]} 42. cxb5 {[%clk 0:00:14.6]} 42... Ke6 {[%clk 0:00:04.8]} 43. Rd4
{[%clk 0:00:13.9]} 43... Ke5 {[%clk 0:00:05.4]} 44. Re4+ {[%clk 0:00:14]} 44...
Kd5 {[%clk 0:00:06]} 45. Rxf4 {[%clk 0:00:14.3]} 45... Rc7 {[%clk 0:00:06.9]}
46. Kg4 {[%clk 0:00:14.3]} 46... Ke5 {[%clk 0:00:06.9]} 47. Rf5+ {[%clk
0:00:14.2]} 47... Ke4 {[%clk 0:00:07.2]} 48. Rf4+ {[%clk 0:00:15.1]} 48... Ke5
{[%clk 0:00:07.3]} 49. h5 {[%clk 0:00:14.6]} 49... Rc1 {[%clk 0:00:07.2]} 50.
Rf5+ {[%clk 0:00:14.7]} 50... Ke4 {[%clk 0:00:07.7]} 51. Rf4+ {[%clk 0:00:14.8]}
51... Ke5 {[%clk 0:00:07.9]} 52. Rf3 {[%clk 0:00:14.6]} 52... Rg1+ {[%clk
0:00:07.3]} 53. Rg3 {[%clk 0:00:14.7]} 53... Ra1 {[%clk 0:00:06.9]} 54. g6
{[%clk 0:00:14.4]} 54... hxg6 {[%clk 0:00:07.1]} 55. hxg6 {[%clk 0:00:14.5]}
55... Kf6 {[%clk 0:00:06.3]} 56. Kf3 {[%clk 0:00:10.6]} 56... Ra3+ {[%clk
0:00:04.3]} 57. Kf2 {[%clk 0:00:11.1]} 57... Rxg3 {[%clk 0:00:03.8]} 58. Kxg3
{[%clk 0:00:11.5]} 58... Kxg6 {[%clk 0:00:04.7]} 59. Kg4 {[%clk 0:00:12]} 59...
Kf6 {[%clk 0:00:05]} 60. Kf4 {[%clk 0:00:12.6]} 60... Ke6 {[%clk 0:00:05.6]} 61.
Ke4 {[%clk 0:00:13.2]} 61... Kd6 {[%clk 0:00:06.2]} 62. Kd4 {[%clk 0:00:13.8]}
62... Ke6 {[%clk 0:00:06.2]} 63. Ke4 {[%clk 0:00:14]} 63... Kd6 {[%clk
0:00:06.1]} 64. Kd4 {[%clk 0:00:14.4]} 64... Ke6 {[%clk 0:00:05.8]} 65. Ke4
{[%clk 0:00:14.4]} 1/2-1/2